[Event "2021 m. Jauniu lyga. III etapas. B"]
[Site "Siauliai"]
[Date "2021.07.04"]
[Round "6.4"]
[White "Simkunaite, Gabija"]
[Black "Maciuitis, Ignas"]
[Result "0-1"]
[WhiteElo "1899"]
[BlackElo "1855"]
[PlyCount "127"]
[EventDate "2021.??.??"]
[TimeControl "8+4"]
[WhiteClock "0:01:44"]
[BlackClock "0:02:39"]

1. e4 {[%emt 0:00:02]} e6 {[%emt 0:00:02]} 2. d4 {[%emt 0:00:00]} d5 {[%emt 0:
00:02]} 3. Nc3 {[%emt 0:00:01]} Bb4 {[%emt 0:00:02]} 4. e5 {[%emt 0:00:01]} c5
{[%emt 0:00:00]} 5. a3 {[%emt 0:00:00]} Bxc3+ {[%emt 0:00:01]} 6. bxc3 {[%emt
0:00:01]} Qc7 {[%emt 0:00:00]} 7. Qg4 {[%emt 0:00:11]} Ne7 {[%emt 0:00:02]} 8.
Bd2 {[%emt 0:00:06]} cxd4 {[%emt 0:00:04]} 9. cxd4 {[%emt 0:00:06]} Qxc2 {
[%emt 0:00:02]} 10. Rc1 {[%emt 0:00:17]} Qg6 {[%emt 0:00:12]} 11. Qxg6 {[%emt
0:00:17]} hxg6 {[%emt 0:00:06]} 12. Bb4 {[%emt 0:00:12]} Nbc6 {[%emt 0:00:04]}
13. Bb5 {[%emt 0:00:14]} Bd7 {[%emt 0:00:00]} 14. Bd6 {[%emt 0:00:15]} Nf5 {
[%emt 0:00:16]} 15. Bxc6 {[%emt 0:00:08]} Bxc6 {[%emt 0:00:04]} 16. Bc5 {[%emt
0:00:02]} Kd7 {[%emt 0:00:28]} 17. Ne2 {[%emt 0:00:05]} b6 {[%emt 0:00:14]} 18.
Bb4 {[%emt 0:00:02]} Rac8 {[%emt 0:00:03]} 19. g4 {[%emt 0:00:25]} Nh4 {[%emt
0:00:16]} 20. Kd2 {[%emt 0:00:07]} Nf3+ {[%emt 0:00:09]} 21. Ke3 {[%emt 0:00:
09]} Nxh2 {[%emt 0:00:46]} 22. f3 {[%emt 0:00:02]} f5 {[%emt 0:00:19]} 23. gxf5
{[%emt 0:00:10]} gxf5 {[%emt 0:00:02]} 24. Rcg1 {[%emt 0:00:03]} Rcg8 {[%emt 0:
00:15]} 25. Be1 {[%emt 0:00:13]} g5 {[%emt 0:00:04]} 26. Bg3 {[%emt 0:01:12]}
f4+ {[%emt 0:00:01]} 27. Nxf4 {[%emt 0:00:00]} gxf4+ {[%emt 0:00:02]} 28. Bxf4
{[%emt 0:00:02]} Rxg1 {[%emt 0:00:06]} 29. Rxg1 {[%emt 0:00:02]} Rh3 {[%emt 0:
00:24]} 30. Rg7+ {[%emt 0:00:49]} Ke8 {[%emt 0:00:08]} 31. Bxh2 {[%emt 0:00:21]
} Rxh2 {[%emt 0:00:02]} 32. Rxa7 {[%emt 0:00:05]} Bd7 {[%emt 0:00:04]} 33. f4 {
[%emt 0:00:11]} Rh3+ {[%emt 0:00:04]} 34. Ke2 {[%emt 0:00:02]} Rb3 {[%emt 0:00:
17]} 35. Rb7 {[%emt 0:00:24]} b5 {[%emt 0:00:11]} 36. Ra7 {[%emt 0:00:08]} Kd8
{[%emt 0:00:14]} 37. Ra6 {[%emt 0:00:13]} Kc7 {[%emt 0:00:20]} 38. f5 {[%emt 0:
00:24]} exf5 {[%emt 0:00:07]} 39. e6 {[%emt 0:00:02]} Be8 {[%emt 0:00:17]} 40.
e7 {[%emt 0:00:05]} Kd7 {[%emt 0:00:29]} 41. Ra7+ {[%emt 0:00:02]} Kd6 {[%emt
0:00:00]} 42. Kd2 {[%emt 0:00:23]} f4 {[%emt 0:00:01]} 43. Ke2 {[%emt 0:00:06]}
Bh5+ {[%emt 0:00:25]} 44. Kf1 {[%emt 0:00:14]} Rd3 {[%emt 0:00:17]} 45. Rb7 {
[%emt 0:00:38]} Rxd4 {[%emt 0:00:05]} 46. Rxb5 {[%emt 0:00:01]} Kxe7 {[%emt 0:
00:06]} 47. Ra5 {[%emt 0:00:01]} Ke6 {[%emt 0:00:08]} 48. Ra8 {[%emt 0:00:03]}
Rd1+ {[%emt 0:00:16]} 49. Kf2 {[%emt 0:00:01]} Ra1 {[%emt 0:00:03]} 50. a4 {
[%emt 0:00:02]} Ke5 {[%emt 0:00:12]} 51. a5 {[%emt 0:00:01]} Ra2+ {[%emt 0:00:
06]} 52. Ke1 {[%emt 0:00:04]} f3 {[%emt 0:00:06]} 53. a6 {[%emt 0:00:16]} f2+ {
[%emt 0:00:09]} 54. Kf1 {[%emt 0:00:01]} Bg4 {[%emt 0:00:01]} 55. Re8+ {[%emt
0:00:26]} Kd4 {[%emt 0:00:06]} 56. Rh8 {[%emt 0:00:03]} Be2+ {[%emt 0:00:18]}
57. Kxf2 {[%emt 0:00:05]} Bxa6+ {[%emt 0:00:03]} 58. Kf3 {[%emt 0:00:02]} Bc4 {
[%emt 0:00:12]} 59. Rh4+ {[%emt 0:00:03]} Kc3 {[%emt 0:00:01]} 60. Rh1 {[%emt
0:00:07]} d4 {[%emt 0:00:08]} 61. Rc1+ {[%emt 0:00:03]} Kb4 {[%emt 0:00:21]}
62. Ke4 {[%emt 0:00:07]} d3 {[%emt 0:00:05]} 63. Kd4 {[%emt 0:00:14]} d2 {
[%emt 0:00:28]} 64. Ra1 {[%emt 0:00:14]} 0-1

[Event "2021 m. Jauniu lyga. III etapas. B"]
[Site "Siauliai"]
[Date "2021.07.04"]
[Round "7.2"]
[White "Venckevicius, Justas"]
[Black "Simkunaite, Gabija"]
[Result "0-1"]
[WhiteElo "1692"]
[BlackElo "1899"]
[PlyCount "121"]
[EventDate "2021.??.??"]
[TimeControl "8+4"]
[BlackClock "0:02:51"]

1. e4 {[%emt 0:00:00]} c5 {[%emt 0:00:01]} 2. Nc3 {[%emt 0:00:01]} Nc6 {[%emt
0:00:01]} 3. Bb5 {[%emt 0:00:01]} g6 {[%emt 0:00:02]} 4. Bxc6 {[%emt 0:00:01]}
dxc6 {[%emt 0:00:02]} 5. d3 {[%emt 0:00:04]} Bg7 {[%emt 0:00:01]} 6. f4 {[%emt
0:00:03]} Nf6 {[%emt 0:00:05]} 7. Nf3 {[%emt 0:00:01]} b6 {[%emt 0:00:07]} 8.
O-O {[%emt 0:00:05]} Bg4 {[%emt 0:00:08]} 9. Qe1 {[%emt 0:00:04]} h5 {[%emt 0:
00:06]} 10. h3 {[%emt 0:00:05]} Bxf3 {[%emt 0:00:14]} 11. Rxf3 {[%emt 0:00:02]}
Qd7 {[%emt 0:00:03]} 12. Be3 {[%emt 0:00:18]} O-O-O {[%emt 0:00:14]} 13. a4 {
[%emt 0:00:05]} Rhe8 {[%emt 0:00:14]} 14. a5 {[%emt 0:00:12]} Kb7 {[%emt 0:00:
06]} 15. axb6 {[%emt 0:00:09]} axb6 {[%emt 0:00:01]} 16. Na4 {[%emt 0:00:35]}
Ra8 {[%emt 0:00:09]} 17. Bxc5 {[%emt 0:00:18]} Rxa4 {[%emt 0:00:39]} 18. Rxa4 {
[%emt 0:00:01]} bxc5 {[%emt 0:00:52]} 19. Qa5 {[%emt 0:00:03]} Rb8 {[%emt 0:00:
10]} 20. Qxc5 {[%emt 0:02:02]} Kc8 {[%emt 0:00:02]} 21. Ra6 {[%emt 0:02:33]}
Nxe4 {[%emt 0:00:58]} 22. Rxc6+ {[%emt 0:01:43]} Kd8 {[%emt 0:00:02]} 23. Qa5+
{[%emt 0:00:23]} Ke8 {[%emt 0:00:02]} 24. Rc7 {[%emt 0:00:35]} Qd4+ {[%emt 0:
00:16]} 25. Kh2 {[%emt 0:00:04]} Nd6 {[%emt 0:00:51]} 26. c3 {[%emt 0:00:06]}
Qb6 {[%emt 0:00:09]} 27. Qxb6 {[%emt 0:00:18]} Rxb6 {[%emt 0:00:00]} 28. b4 {
[%emt 0:00:03]} Kd8 {[%emt 0:00:02]} 29. Rc5 {[%emt 0:00:02]} Nb5 {[%emt 0:00:
18]} 30. c4 {[%emt 0:00:06]} Nd4 {[%emt 0:00:02]} 31. Rf1 {[%emt 0:00:10]} Rxb4
{[%emt 0:00:03]} 32. Ra1 {[%emt 0:00:02]} Nf3+ {[%emt 0:00:02]} 33. Kg3 {[%emt
0:00:03]} Bxa1 {[%emt 0:00:03]} 34. Kxf3 {[%emt 0:00:01]} e6 {[%emt 0:00:04]}
35. Ke4 {[%emt 0:00:08]} Bf6 {[%emt 0:00:06]} 36. g4 {[%emt 0:00:04]} hxg4 {
[%emt 0:00:02]} 37. hxg4 {[%emt 0:00:01]} Rb1 {[%emt 0:00:01]} 38. g5 {[%emt 0:
00:11]} Bg7 {[%emt 0:00:03]} 39. Ra5 {[%emt 0:00:06]} Re1+ {[%emt 0:00:19]} 40.
Kf3 {[%emt 0:00:03]} Bd4 {[%emt 0:00:03]} 41. Ra3 {[%emt 0:00:07]} Ke7 {[%emt
0:00:09]} 42. Kg4 {[%emt 0:00:02]} Rf1 {[%emt 0:00:11]} 43. Kg3 {[%emt 0:00:07]
} Be3 {[%emt 0:00:03]} 44. Kg2 {[%emt 0:00:05]} Rxf4 {[%emt 0:00:05]} 45. Rc3 {
[%emt 0:00:03]} Bc5 {[%emt 0:00:05]} 46. Rb3 {[%emt 0:00:03]} Rg4+ {[%emt 0:00:
02]} 47. Kf3 {[%emt 0:00:02]} Rxg5 {[%emt 0:00:02]} 48. Rb5 {[%emt 0:00:05]}
Kd6 {[%emt 0:00:09]} 49. d4 {[%emt 0:00:07]} Rf5+ {[%emt 0:00:00]} 50. Ke4 {
[%emt 0:00:01]} Ba7 {[%emt 0:00:11]} 51. Rb7 {[%emt 0:00:03]} Bxd4 {[%emt 0:00:
18]} 52. Kxd4 {[%emt 0:00:01]} Rf4+ {[%emt 0:00:04]} 53. Kc3 {[%emt 0:00:07]}
g5 {[%emt 0:00:02]} 54. Kb4 {[%emt 0:00:12]} Rf1 {[%emt 0:00:07]} 55. Ra7 {
[%emt 0:00:08]} Rb1+ {[%emt 0:00:14]} 56. Kc3 {[%emt 0:00:02]} f5 {[%emt 0:00:
04]} 57. Ra6+ {[%emt 0:00:06]} Ke5 {[%emt 0:00:02]} 58. c5 {[%emt 0:00:04]} g4
{[%emt 0:00:01]} 59. c6 {[%emt 0:00:03]} g3 {[%emt 0:00:09]} 60. Ra2 {[%emt 0:
00:07]} Rc1+ {[%emt 0:00:03]} 61. Rc2 {[%emt 0:00:07]} 0-1

[Event "2021 m. Jauniu lyga. III etapas. B"]
[Site "Siauliai"]
[Date "2021.07.04"]
[Round "7.3"]
[White "Spevak, Dovydas"]
[Black "Ravlusevic, Evelina"]
[Result "0-1"]
[WhiteElo "1432"]
[BlackElo "1748"]
[PlyCount "112"]
[EventDate "2021.??.??"]
[TimeControl "8+4"]
[WhiteClock "0:00:46"]
[BlackClock "0:06:08"]

1. d4 {[%emt 0:00:00]} Nf6 {[%emt 0:00:02]} 2. e3 {[%emt 0:00:01]} g6 {[%emt 0:
00:02]} 3. Bd3 {[%emt 0:00:00]} Bg7 {[%emt 0:00:01]} 4. Nd2 {[%emt 0:00:00]}
O-O {[%emt 0:00:02]} 5. c3 {[%emt 0:00:07]} d6 {[%emt 0:00:04]} 6. Ngf3 {[%emt
0:00:10]} Nbd7 {[%emt 0:00:03]} 7. O-O {[%emt 0:00:10]} b6 {[%emt 0:00:00]} 8.
e4 {[%emt 0:00:10]} e5 {[%emt 0:00:09]} 9. d5 {[%emt 0:00:20]} Ne8 {[%emt 0:00:
11]} 10. b4 {[%emt 0:01:57]} a5 {[%emt 0:00:04]} 11. b5 {[%emt 0:00:45]} f5 {
[%emt 0:00:09]} 12. a4 {[%emt 0:00:26]} f4 {[%emt 0:00:06]} 13. g4 {[%emt 0:01:
36]} Nc5 {[%emt 0:00:05]} 14. Ne1 {[%emt 0:01:21]} f3 {[%emt 0:00:56]} 15. h3 {
[%emt 0:00:43]} Qh4 {[%emt 0:00:05]} 16. Ndxf3 {[%emt 0:00:41]} Qxh3 {[%emt 0:
00:12]} 17. Ng5 {[%emt 0:00:28]} Qxg4+ {[%emt 0:00:31]} 18. Qxg4 {[%emt 0:00:
01]} Bxg4 {[%emt 0:00:02]} 19. f3 {[%emt 0:00:10]} Bd7 {[%emt 0:00:04]} 20. Kg2
{[%emt 0:00:09]} h6 {[%emt 0:00:09]} 21. Nh3 {[%emt 0:00:00]} Nf6 {[%emt 0:00:
22]} 22. Ba3 {[%emt 0:00:07]} Nb3 {[%emt 0:00:07]} 23. Rb1 {[%emt 0:00:06]} Nd2
{[%emt 0:00:03]} 24. Rb2 {[%emt 0:00:06]} Nxf1 {[%emt 0:00:02]} 25. Bxf1 {
[%emt 0:00:02]} Nh5 {[%emt 0:00:07]} 26. Nd3 {[%emt 0:00:07]} Rf7 {[%emt 0:00:
11]} 27. Ra2 {[%emt 0:00:02]} Raf8 {[%emt 0:00:01]} 28. Bc1 {[%emt 0:00:04]} g5
{[%emt 0:00:01]} 29. c4 {[%emt 0:00:04]} Rxf3 {[%emt 0:00:14]} 30. Be2 {[%emt
0:00:06]} Rxh3 {[%emt 0:00:09]} 31. Bxh5 {[%emt 0:00:05]} Rxh5 {[%emt 0:00:02]}
32. Ba3 {[%emt 0:00:02]} Rh4 {[%emt 0:00:09]} 33. Nf2 {[%emt 0:00:02]} Rhf4 {
[%emt 0:00:03]} 34. Bc1 {[%emt 0:00:03]} R4f7 {[%emt 0:00:04]} 35. Be3 {[%emt
0:00:04]} Kh7 {[%emt 0:00:03]} 36. Bc1 {[%emt 0:00:05]} Kg6 {[%emt 0:00:01]}
37. Be3 {[%emt 0:00:03]} h5 {[%emt 0:00:01]} 38. Ra1 {[%emt 0:00:03]} g4 {
[%emt 0:00:05]} 39. Rh1 {[%emt 0:00:03]} Bh6 {[%emt 0:00:02]} 40. Nxg4 {[%emt
0:00:07]} Bxg4 {[%emt 0:00:06]} 41. Bxh6 {[%emt 0:00:02]} Kxh6 {[%emt 0:00:02]}
42. c5 {[%emt 0:00:04]} Rf2+ {[%emt 0:00:04]} 43. Kg1 {[%emt 0:00:02]} Rf1+ {
[%emt 0:00:02]} 44. Kh2 {[%emt 0:00:01]} Rxh1+ {[%emt 0:00:12]} 45. Kxh1 {
[%emt 0:00:01]} Rf4 {[%emt 0:00:02]} 46. cxb6 {[%emt 0:00:04]} cxb6 {[%emt 0:
00:01]} 47. Kg2 {[%emt 0:00:01]} Rxe4 {[%emt 0:00:01]} 48. Kg3 {[%emt 0:00:01]}
Rxa4 {[%emt 0:00:04]} 49. Kh4 {[%emt 0:00:01]} Rf4 {[%emt 0:00:02]} 50. Kg3 {
[%emt 0:00:02]} Rf8 {[%emt 0:00:00]} 51. Kh4 {[%emt 0:00:01]} e4 {[%emt 0:00:
03]} 52. Kg3 {[%emt 0:00:01]} e3 {[%emt 0:00:02]} 53. Kh2 {[%emt 0:00:04]} e2 {
[%emt 0:00:02]} 54. Kg2 {[%emt 0:00:01]} e1=Q {[%emt 0:00:05]} 55. Kh2 {[%emt
0:00:03]} Rf2+ {[%emt 0:00:03]} 56. Kg3 {[%emt 0:00:01]} Qe3+ {[%emt 0:00:01]}
0-1

[Event "2021 m. Jauniu lyga. III etapas. B"]
[Site "Siauliai"]
[Date "2021.07.04"]
[Round "7.4"]
[White "Dijokas, Jokubas"]
[Black "Persinas, Vilius"]
[Result "0-1"]
[WhiteElo "1335"]
[BlackElo "1668"]
[PlyCount "140"]
[EventDate "2021.??.??"]
[TimeControl "8+4"]
[WhiteClock "0:00:11"]
[BlackClock "0:04:27"]

1. e4 {[%emt 0:00:01]} c6 {[%emt 0:00:00]} 2. d4 {[%emt 0:00:02]} d5 {[%emt 0:
00:00]} 3. exd5 {[%emt 0:00:02]} cxd5 {[%emt 0:00:00]} 4. c4 {[%emt 0:00:02]}
Nf6 {[%emt 0:00:02]} 5. Nc3 {[%emt 0:00:03]} e6 {[%emt 0:00:02]} 6. Nf3 {[%emt
0:00:04]} Bb4 {[%emt 0:00:01]} 7. a3 {[%emt 0:00:14]} Bxc3+ {[%emt 0:00:00]} 8.
bxc3 {[%emt 0:00:00]} O-O {[%emt 0:00:03]} 9. Be2 {[%emt 0:00:02]} b6 {[%emt 0:
00:01]} 10. cxd5 {[%emt 0:00:07]} Nxd5 {[%emt 0:00:00]} 11. Bd2 {[%emt 0:00:17]
} Bb7 {[%emt 0:00:04]} 12. O-O {[%emt 0:00:04]} Nc6 {[%emt 0:00:01]} 13. Rc1 {
[%emt 0:00:21]} Nf6 {[%emt 0:00:11]} 14. Bg5 {[%emt 0:00:13]} h6 {[%emt 0:00:
04]} 15. Bh4 {[%emt 0:00:01]} Rc8 {[%emt 0:00:22]} 16. Qb3 {[%emt 0:00:27]} Qd5
{[%emt 0:00:14]} 17. Qxd5 {[%emt 0:00:19]} Nxd5 {[%emt 0:00:01]} 18. Rc2 {
[%emt 0:00:25]} Nf4 {[%emt 0:00:08]} 19. Bd1 {[%emt 0:00:30]} Na5 {[%emt 0:01:
06]} 20. Be7 {[%emt 0:00:20]} Rfe8 {[%emt 0:00:05]} 21. Bb4 {[%emt 0:00:15]}
Nc4 {[%emt 0:00:08]} 22. g3 {[%emt 0:00:51]} Nd5 {[%emt 0:00:00]} 23. Be2 {
[%emt 0:00:29]} a5 {[%emt 0:00:01]} 24. Bxc4 {[%emt 0:00:11]} axb4 {[%emt 0:00:
28]} 25. cxb4 {[%emt 0:00:32]} Nxb4 {[%emt 0:00:27]} 26. axb4 {[%emt 0:00:08]}
Bxf3 {[%emt 0:00:01]} 27. Rc3 {[%emt 0:00:43]} Red8 {[%emt 0:00:44]} 28. Rfc1 {
[%emt 0:00:30]} Rxd4 {[%emt 0:00:59]} 29. Rxf3 {[%emt 0:00:42]} Rdxc4 {[%emt 0:
00:06]} 30. Rxc4 {[%emt 0:00:00]} Rxc4 {[%emt 0:00:00]} 31. Rb3 {[%emt 0:00:07]
} Kf8 {[%emt 0:00:04]} 32. Kf1 {[%emt 0:00:02]} Ke7 {[%emt 0:00:04]} 33. Ke2 {
[%emt 0:00:05]} Rc2+ {[%emt 0:00:05]} 34. Ke3 {[%emt 0:00:14]} g5 {[%emt 0:00:
43]} 35. h3 {[%emt 0:00:28]} Rc1 {[%emt 0:00:06]} 36. Kd4 {[%emt 0:00:59]} Kd6
{[%emt 0:00:09]} 37. f4 {[%emt 0:00:20]} b5 {[%emt 0:00:06]} 38. fxg5 {[%emt 0:
00:13]} hxg5 {[%emt 0:00:00]} 39. g4 {[%emt 0:00:01]} Rc4+ {[%emt 0:00:03]} 40.
Kd3 {[%emt 0:00:04]} Ke5 {[%emt 0:00:05]} 41. Ke3 {[%emt 0:00:01]} f5 {[%emt 0:
00:02]} 42. gxf5 {[%emt 0:00:04]} exf5 {[%emt 0:00:01]} 43. Kf3 {[%emt 0:00:01]
} Re4 {[%emt 0:00:10]} 44. Kg3 {[%emt 0:00:08]} Kd5 {[%emt 0:00:01]} 45. Rf3 {
[%emt 0:00:06]} Re5 {[%emt 0:00:10]} 46. Rb3 {[%emt 0:00:06]} Kd4 {[%emt 0:00:
02]} 47. Rb1 {[%emt 0:00:05]} Re3+ {[%emt 0:00:03]} 48. Kg2 {[%emt 0:00:01]}
Kc4 {[%emt 0:00:02]} 49. Rb2 {[%emt 0:00:03]} Rd3 {[%emt 0:00:03]} 50. Rb1 {
[%emt 0:00:03]} Kc3 {[%emt 0:00:07]} 51. Kh2 {[%emt 0:00:08]} Rd4 {[%emt 0:00:
02]} 52. Rg1 {[%emt 0:00:07]} g4 {[%emt 0:00:04]} 53. hxg4 {[%emt 0:00:02]}
fxg4 {[%emt 0:00:04]} 54. Kg3 {[%emt 0:00:06]} Kxb4 {[%emt 0:00:02]} 55. Rb1+ {
[%emt 0:00:03]} Kc4 {[%emt 0:00:01]} 56. Rc1+ {[%emt 0:00:02]} Kd5 {[%emt 0:00:
06]} 57. Rb1 {[%emt 0:00:06]} b4 {[%emt 0:00:00]} 58. Rc1 {[%emt 0:00:06]} b3 {
[%emt 0:00:01]} 59. Rb1 {[%emt 0:00:06]} Kc4 {[%emt 0:00:00]} 60. Rc1+ {[%emt
0:00:02]} Kb4 {[%emt 0:00:00]} 61. Ra1 {[%emt 0:00:09]} Kc3 {[%emt 0:00:02]}
62. Rc1+ {[%emt 0:00:03]} Kb2 {[%emt 0:00:03]} 63. Re1 {[%emt 0:00:04]} Rc4 {
[%emt 0:00:01]} 64. Re2+ {[%emt 0:00:04]} Kb1 {[%emt 0:00:04]} 65. Re1+ {[%emt
0:00:02]} Ka2 {[%emt 0:00:01]} 66. Re2+ {[%emt 0:00:03]} b2 {[%emt 0:00:02]}
67. Re8 {[%emt 0:00:06]} b1=Q {[%emt 0:00:05]} 68. Ra8+ {[%emt 0:00:02]} Kb3 {
[%emt 0:00:01]} 69. Rb8+ {[%emt 0:00:02]} Rb4 {[%emt 0:00:01]} 70. Rxb4+ {
[%emt 0:00:05]} Kxb4 {[%emt 0:00:01]} 0-1